bitfinex/quotes_SOLUSD_20250922
["timestamp","ask_amount","ask_price","bid_price","bid_amount"]
[1758573475658,1.8314254,219.24,219.22,0.2]
[1758573475833,40.28080171,219.26,219.22,0.2]
[1758573476033,1.8314254,219.23,219.22,0.2]
[1758573476634,1.8314254,219.25,219.22,0.2]
[1758573478061,42.11222711,219.26,219.22,0.2]
[1758573478246,40.28080171,219.26,219.22,0.2]
[1758573478744,1.8314254,219.25,219.22,0.2]
[1758573479757,6.39250232,219.25,219.22,13.58493531]
[1758573481062,1.8314254,219.25,219.22,13.58493531]
[1758573481272,0.53,219.33,219.23,0.68]
[1758573481466,1.8314254,219.31,219.23,0.68]
[1758573481960,1.8314254,219.31,219.23,5.24125201]
[1758573482171,1.8314254,219.31,219.24,0.68]
[1758573482348,6.39125453,219.31,219.24,0.68]
[1758573483271,4.55982913,219.31,219.24,0.68]
[1758573483484,4.55982913,219.31,219.22,13.58493531]
[1758573483669,1.8314254,219.29,219.22,14.26493531]
[1758573483977,35.74,219.28,219.22,14.26493531]
[1758573485376,35.74,219.28,219.22,18.82655919]
[1758573486253,40.30050353,219.28,219.22,18.82655919]
[1758573486955,35.74,219.28,219.22,14.26493531]
[1758573487153,1.8314254,219.23,219.22,0.2]
[1758573487364,40.30046969,219.28,219.22,0.2]
[1758573487365,35.78,219.25,219.22,0.2]
[1758573487563,6.39189179,219.28,219.22,4.76159308]
[1758573487780,35.8,219.27,219.22,4.76159308]
[1758573488085,35.8,219.27,219.23,0.68]
[1758573488394,35.8,219.27,219.24,0.68]
[1758573488584,2.3614254,219.3,219.24,0.68]
[1758573488771,38.1614254,219.3,219.24,0.68]
[1758573489373,38.1614254,219.3,219.24,5.24110797]
[1758573489374,42.72141922,219.3,219.24,5.24110797]
[1758573490794,6.92141922,219.3,219.24,5.24110797]
[1758573490999,1.8314254,219.35,219.25,0.68]
[1758573491176,37.6114254,219.36,219.25,0.68]
[1758573491377,0.53,219.38,219.26,13.59559401]
[1758573491581,35.92,219.44,219.33,1.8314254]
[1758573491781,35.92,219.44,219.34,0.68]
[1758573492700,35.92,219.43,219.35,17.78765972]
[1758573492898,35.92,219.43,219.36,0.68]
[1758573494604,35.92,219.43,219.37,4.55850845]
[1758573495006,35.92,219.43,219.38,0.68]
[1758573495179,35.92,219.43,219.39,0.68]
[1758573495599,35.92,219.43,219.37,5.26850845]
[1758573499082,4.55638454,219.48,219.38,0.71]
[1758573499283,0.53,219.48,219.39,1.8314254]
[1758573499497,3.58796477,219.51,219.41,1.8314254]
[1758573499698,0.53,219.51,219.42,0.71]
[1758573499899,35.86,219.5,219.42,0.71]
[1758573500310,0.53,219.49,219.42,0.71]
[1758573501087,40.94561512,219.51,219.43,4.55726199]
[1758573501329,0.53,219.51,219.44,0.71]
[1758573501486,4.55533585,219.53,219.44,0.71]
[1758573501487,0.53,219.53,219.44,0.71]
[1758573501687,0.1,219.54,219.45,1.8314254]
[1758573502112,0.1,219.54,219.46,0.71]
[1758573503095,0.1,219.54,219.47,4.5564314]
[1758573503293,0.1,219.54,219.48,0.71]
[1758573503513,0.1,219.54,219.48,14.22681902]
[1758573504437,0.1,219.54,219.49,0.71]
[1758573504807,0.1,219.54,219.5,0.71]
[1758573505120,0.1,219.54,219.51,5.26548564]
[1758573506033,0.1,219.54,219.52,0.71]
[1758573506332,0.1,219.54,219.53,1.8314254]
[1758573506708,0.1,219.54,219.53,2.5414254]
[1758573507133,0.1,219.54,219.53,7.09661147]
[1758573511718,0.1,219.54,219.5,0.67]
[1758573511916,0.1,219.54,219.5,1.8314254]
[1758573512115,0.63,219.54,219.5,1.8314254]
[1758573512517,0.1,219.54,219.5,1.8314254]
[1758573512921,0.1,219.54,219.5,2.5014254]
[1758573515032,0.53,219.53,219.48,13.50676506]
[1758573515346,0.53,219.53,219.46,2.5014254]
[1758573515347,0.53,219.53,219.46,0.67]
[1758573515534,4.65502643,219.54,219.48,1.8314254]
[1758573515713,4.65502643,219.54,219.48,15.85272118]
[1758573516034,4.65502643,219.54,219.48,2.5014254]
[1758573518447,0.1,219.54,219.51,4.55560111]
[1758573518631,0.1,219.54,219.52,2.5014254]
[1758573519124,0.1,219.54,219.53,0.67]
[1758573520780,0.1,219.54,219.53,5.22518607]
[1758573522170,0.1,219.54,219.53,7.05661147]
[1758573522670,0.1,219.54,219.53,10.72555135]
[1758573524156,0.53,219.66,219.54,13.59559401]
[1758573524341,0.53,219.68,219.63,1.8314254]
[1758573525368,0.53,219.71,219.63,2.5014254]
[1758573526147,0.53,219.71,219.64,1.8314254]
[1758573526362,5.08148207,219.71,219.64,6.38431148]
[1758573526681,5.08148207,219.71,219.64,4.55288608]
[1758573526863,18.76118823,219.73,219.65,0.67]
[1758573527561,20.59261363,219.73,219.65,0.67]
[1758573527954,5.08118823,219.73,219.65,5.22267556]
[1758573528258,6.91261363,219.73,219.65,5.22267556]
[1758573528946,5.08118823,219.73,219.65,5.22267556]
[1758573531555,0.53,219.72,219.62,2.5014254]
[1758573531759,0.53,219.71,219.62,2.5014254]
[1758573532156,0.53,219.71,219.63,0.67]
[1758573532467,4.55166135,219.7,219.63,5.22305779]
[1758573533971,4.55166135,219.7,219.63,0.67]
[1758573537654,4.55166135,219.7,219.63,5.22309333]
[1758573537858,3.38168071,219.73,219.64,0.68]
[1758573538056,0.53,219.73,219.64,0.68]
[1758573538565,0.53,219.72,219.64,0.68]
[1758573538763,15.92865354,219.73,219.64,0.68]
[1758573538960,0.53,219.71,219.64,0.68]
[1758573539679,5.08151101,219.71,219.64,5.23271868]
[1758573541174,5.08151101,219.71,219.65,0.68]
[1758573541577,5.08151101,219.71,219.65,5.23268688]
[1758573542157,0.1,219.76,219.7,2.85168071]
[1758573542386,0.1,219.76,219.74,2.85168071]
[1758573542560,0.13,219.83,219.74,2.85168071]
[1758573542761,0.13,219.83,219.68,26.0]
[1758573542762,2.85168071,219.81,219.69,13.59559401]
[1758573542973,2.85168071,219.81,219.7,0.68]
[1758573543180,2.85168071,219.81,219.71,2.85168071]
[1758573543385,4.54959053,219.8,219.72,5.23124704]
[1758573543678,4.54936087,219.82,219.73,3.53168071]
[1758573543861,4.54936087,219.82,219.75,2.85168071]
[1758573544068,14.22358755,219.84,219.72,4.55124704]
[1758573544069,4.54889723,219.84,219.77,2.85168071]
[1758573546007,4.54889723,219.84,219.77,16.85477485]
[1758573546770,4.54889723,219.84,219.77,14.00309414]
[1758573546973,4.54889723,219.84,219.76,0.68]
[1758573547399,4.54889723,219.84,219.76,3.53168071]
[1758573547768,4.54889723,219.84,219.76,8.08209209]
[1758573548185,4.54889723,219.84,219.76,7.40209209]
[1758573548387,4.54889723,219.84,219.77,0.68]
[1758573548790,4.54889723,219.84,219.76,2.85168071]
[1758573548988,4.54889723,219.84,219.77,0.68]
[1758573549369,4.64845797,219.86,219.78,2.85168071]
[1758573549712,4.64845797,219.86,219.78,4.54980893]
[1758573549913,4.64845797,219.86,219.8,2.85168071]
[1758573550486,4.64845797,219.86,219.84,2.85168071]
[1758573550487,0.1,219.86,219.84,2.85168071]
[1758573550679,0.1,219.86,219.85,0.68]
[1758573551993,0.1,219.86,219.85,5.22855583]
[1758573553376,0.1,219.86,219.8,0.68]
[1758573554075,0.1,219.86,219.81,2.85168071]
[1758573554279,0.1,219.86,219.81,3.53168071]
[1758573554483,0.1,219.86,219.82,0.68]
[1758573555310,0.1,219.86,219.81,2.85168071]
[1758573555485,4.64835704,219.86,219.81,2.85168071]
[1758573555983,4.64835704,219.86,219.81,3.52168071]
[1758573556173,4.77835704,219.86,219.77,16.23393132]
[1758573556495,4.77835704,219.86,219.77,3.52168071]
[1758573556697,4.77835704,219.86,219.78,0.67]
[1758573556873,4.64835704,219.86,219.78,0.67]
[1758573558416,4.64835704,219.86,219.79,4.54979753]
[1758573558615,4.64835704,219.86,219.8,0.67]
[1758573559916,2.85168071,219.85,219.77,14.13011793]
[1758573560109,2.98168071,219.85,219.77,14.13011793]
[1758573560319,2.85168071,219.79,219.71,0.67]
[1758573560613,2.85168071,219.77,219.71,0.67]
[1758573561595,0.13,219.77,219.68,0.67]
[1758573561795,4.5508328,219.74,219.68,0.67]
[1758573564221,2.85168071,219.75,219.68,0.67]
[1758573564222,0.13,219.77,219.68,0.67]
[1758573564421,2.85168071,219.76,219.68,0.67]
[1758573564590,4.5503822,219.77,219.68,14.23874872]
[1758573564793,38.57168071,219.8,219.69,3.52168071]
[1758573565118,38.57168071,219.8,219.7,0.67]
[1758573565321,7.40129893,219.8,219.7,0.67]
[1758573565615,2.85168071,219.76,219.68,31.22199306]
[1758573565821,2.85168071,219.76,219.69,0.67]
[1758573566024,4.67996564,219.79,219.7,4.55166135]
[1758573566219,2.85168071,219.81,219.71,0.67]
[1758573566519,7.40108967,219.81,219.71,0.67]
[1758573567910,7.40108967,219.81,219.72,4.55124704]
[1758573568096,4.54940896,219.81,219.73,0.72]
[1758573568304,7.5307542,219.83,219.73,0.72]
[1758573568812,4.54907349,219.83,219.74,2.85168071]
[1758573568999,4.54907349,219.83,219.75,0.72]
[1758573569791,2.85168071,219.85,219.75,5.27058557]
[1758573569792,4.67876273,219.84,219.75,5.27058557]
[1758573570724,2.85168071,219.81,219.72,0.72]
[1758573571096,2.85168071,219.81,219.72,3.57168071]
[1758573571297,2.98168071,219.83,219.73,0.72]
[1758573572024,4.54917659,219.82,219.74,4.5508328]
[1758573572207,4.54917659,219.82,219.75,0.72]
[1758573573827,2.98168071,219.81,219.72,0.72]
[1758573574024,0.13,219.8,219.72,0.72]
[1758573574323,2.98168071,219.79,219.69,0.72]
[1758573574499,2.98168071,219.79,219.7,0.72]
[1758573575809,4.55000455,219.78,219.71,4.55145418]
[1758573576016,2.98168071,219.77,219.68,14.40292994]
[1758573576422,0.13,219.76,219.68,14.40292994]
[1758573576914,0.13,219.76,219.68,18.95491103]
[1758573578021,4.55062571,219.75,219.68,18.95491103]
[1758573580223,4.55000455,219.78,219.69,0.72]
[1758573581026,4.55000455,219.78,219.69,3.57168071]
[1758573581322,4.55000455,219.78,219.7,0.72]
[1758573581530,4.55000455,219.78,219.71,4.55145418]
[1758573581704,4.55000455,219.78,219.71,5.27145418]
[1758573582810,4.55000455,219.78,219.7,4.55166135]
[1758573583008,4.55000455,219.78,219.72,0.72]
[1758573584729,41.58742599,219.8,219.72,5.27120275]
[1758573584916,38.53168071,219.8,219.73,0.72]
[1758573585613,2.85168071,219.8,219.73,0.72]
[1758573585913,4.54980032,219.79,219.73,0.72]
[1758573587702,4.54980032,219.79,219.73,5.27094892]
[1758573588035,4.54956677,219.81,219.74,0.72]
[1758573589635,4.54956677,219.81,219.74,5.2706737]
[1758573590934,4.54956677,219.81,219.72,0.72]
[1758573590935,2.98168071,219.8,219.72,0.72]
[1758573591520,38.66168071,219.8,219.72,0.72]
[1758573591905,4.54979753,219.79,219.72,0.72]
[1758573592309,2.85168071,219.8,219.72,5.27119426]
[1758573592527,35.68,219.8,219.73,0.72]
[1758573593832,35.68,219.8,219.74,4.5508328]
[1758573594435,35.68,219.8,219.74,5.2708328]
[1758573594824,40.22938355,219.81,219.75,0.72]
[1758573595028,0.13,219.8,219.74,4.5508328]
[1758573595846,4.67976867,219.8,219.74,4.5508328]
[1758573596220,133.7,219.79,219.73,5.27103757]
[1758573598145,133.7,219.79,219.7,1.82349705]
[1758573598146,4.55000455,219.78,219.7,1.82349705]
[1758573598346,0.13,219.77,219.7,0.66]
[1758573598649,35.68,219.76,219.7,0.66]
[1758573599525,35.81,219.76,219.68,14.17039009]
[1758573599727,35.81,219.76,219.68,0.66]
[1758573600150,4.55062571,219.75,219.68,5.21198207]
[1758573600627,4.55062571,219.75,219.68,4.55198207]
[1758573600835,4.55062571,219.75,219.69,0.66]
[1758573601040,35.68,219.76,219.69,0.66]
[1758573601539,40.23043029,219.76,219.69,0.66]
[1758573602546,4.55043029,219.76,219.69,0.66]
[1758573602848,35.68,219.75,219.69,5.21185212]
[1758573603430,35.68,219.76,219.7,2.48349705]
[1758573603627,35.68,219.76,219.71,0.66]
[1758573603829,35.68,219.76,219.72,0.66]
[1758573604349,35.68,219.76,219.7,7.03501901]
[1758573604350,35.81,219.76,219.7,7.03501901]
[1758573604552,40.36052744,219.76,219.7,0.66]
[1758573605235,3.06806882,219.75,219.7,0.66]
[1758573605429,40.23052744,219.76,219.7,5.21163346]
[1758573605644,40.23052744,219.76,219.7,0.66]
[1758573605842,0.13,219.76,219.69,5.21185637]
[1758573606054,43.4283799,219.76,219.69,5.21185637]
[1758573606245,40.36041918,219.76,219.69,5.21185637]
[1758573606650,4.68041918,219.76,219.69,5.21185637]
[1758573606827,35.68,219.75,219.69,5.21185637]
[1758573607646,4.55022156,219.77,219.69,4.55185637]
[1758573607953,35.68,219.75,219.7,0.66]
[1758573608154,35.81,219.75,219.7,0.66]
[1758573608738,35.68,219.75,219.7,5.21159992]
[1758573611456,35.68,219.75,219.71,0.66]
[1758573611851,40.23073776,219.75,219.69,5.21186854]
[1758573612061,0.13,219.74,219.69,4.55186854]
[1758573612359,0.13,219.74,219.68,13.99862679]
[1758573612669,3.19858341,219.73,219.65,5.21251186]
[1758573612840,1.82349705,219.71,219.65,13.51729278]
[1758573613044,1.82349705,219.69,219.6,0.66]
[1758573613247,1.95349705,219.69,219.6,0.66]
[1758573613583,4.55207574,219.68,219.61,4.5535102]
[1758573613741,40.21207574,219.68,219.62,0.66]
[1758573614740,40.21207574,219.68,219.62,5.21331659]
[1758573614934,40.21207574,219.68,219.62,0.66]
[1758573615141,40.21207574,219.68,219.62,5.21331516]
[1758573615556,40.21207574,219.68,219.62,19.05235312]
[1758573615747,4.55207574,219.68,219.62,5.21331516]
[1758573615953,26.0,219.74,219.62,4.55331516]
[1758573615954,3.06652165,219.71,219.62,4.55331516]
[1758573616270,35.66,219.7,219.63,2.53349705]
[1758573616552,4.68123064,219.73,219.64,0.71]
[1758573616765,35.66,219.72,219.64,0.71]
[1758573616981,4.55145418,219.71,219.65,4.55269747]
[1758573618569,138.38145418,219.71,219.64,0.71]
[1758573619352,138.38145418,219.71,219.64,5.26284067]
[1758573620155,35.66,219.7,219.64,5.26284067]
[1758573621261,138.38145418,219.71,219.64,5.26284067]
[1758573621578,133.7,219.71,219.65,0.71]
[1758573621873,35.66,219.7,219.65,0.71]
[1758573622256,35.66,219.7,219.66,0.71]
[1758573622471,138.25145511,219.71,219.66,0.71]
[1758573622668,35.66,219.7,219.66,0.71]
[1758573623174,35.66,219.7,219.65,4.55269747]
[1758573623354,35.66,219.7,219.65,5.26269747]
[1758573623952,133.7,219.71,219.65,5.26269747]
[1758573624160,35.66,219.7,219.65,5.26269747]
[1758573624658,35.66,219.7,219.65,4.55269747]
[1758573624858,35.66,219.7,219.66,0.71]
[1758573625068,35.66,219.7,219.67,0.71]
[1758573625574,169.36,219.71,219.67,5.26221643]
[1758573626063,169.36,219.71,219.67,4.55221643]
[1758573626265,169.49,219.71,219.67,4.55221643]
[1758573626574,35.66,219.74,219.69,1.82349705]
[1758573626752,35.66,219.74,219.7,0.71]
[1758573627150,133.83,219.77,219.71,0.66]
[1758573627360,35.66,219.76,219.71,0.66]
[1758573627597,35.66,219.76,219.71,7.03487897]
[1758573630080,35.66,219.76,219.72,5.21118148]
[1758573630577,133.7,219.77,219.72,5.21118148]
[1758573630761,133.7,219.77,219.73,0.66]
[1758573630966,169.36,219.77,219.73,0.66]
[1758573631680,133.7,219.77,219.72,4.55118148]
[1758573632051,133.7,219.77,219.73,0.66]
[1758573632482,138.25021805,219.77,219.73,0.66]
[1758573632655,133.7,219.77,219.72,5.21118693]
[1758573636101,133.7,219.77,219.73,0.66]
[1758573636592,133.7,219.76,219.73,0.66]
[1758573637477,133.7,219.76,219.66,52.29176081]
[1758573637676,133.7,219.76,219.67,0.66]
[1758573637885,133.83,219.76,219.67,0.66]
[1758573638081,133.83,219.76,219.68,15.9322651]
[1758573638283,133.7,219.76,219.69,0.66]
[1758573640308,133.7,219.76,219.7,4.55166135]
[1758573640609,169.34,219.76,219.7,5.21166135]
[1758573641377,133.7,219.76,219.7,16.59081474]
[1758573641580,169.34,219.76,219.71,0.66]
[1758573642102,169.34,219.76,219.72,0.66]
[1758573642305,169.34,219.76,219.73,4.55103991]
[1758573642482,133.7,219.76,219.73,4.55103991]
[1758573642678,133.7,219.76,219.73,5.21103991]
[1758573643303,133.7,219.76,219.73,4.55103991]
[1758573643488,133.7,219.76,219.72,4.55124704]
[1758573643689,133.7,219.76,219.72,5.21124704]
[1758573646598,133.7,219.76,219.72,4.55124704]
[1758573646807,133.7,219.76,219.72,5.21124704]
[1758573649601,133.7,219.76,219.73,0.66]
[1758573649806,133.7,219.76,219.74,0.66]
[1758573650704,133.7,219.76,219.75,0.66]
[1758573651209,133.7,219.76,219.75,5.21062571]
[1758573654707,0.23,219.86,219.75,18.41068703]
[1758573655004,0.1,219.86,219.77,1.82349705]
[1758573655204,35.62,219.85,219.78,0.66]
[1758573656292,0.23,219.86,219.79,4.54979753]
[1758573656491,35.62,219.85,219.8,0.66]
[1758573656813,35.62,219.85,219.81,0.66]
[1758573657711,0.1,219.86,219.81,0.66]
[1758573657712,35.72,219.86,219.82,4.54917659]
[1758573657912,35.72,219.86,219.82,5.24917659]
[1758573659697,0.1,219.86,219.83,0.7]
[1758573660221,133.8,219.86,219.83,0.7]
[1758573660517,133.8,219.86,219.84,0.7]
[1758573661312,133.8,219.86,219.84,5.24869743]
[1758573661822,133.8,219.86,219.85,0.7]
[1758573664023,133.8,219.86,219.85,5.24855583]
[1758573664397,133.8,219.86,219.8,0.7]
[1758573665794,133.8,219.86,219.81,15.92284244]
[1758573665996,133.8,219.86,219.82,0.7]
[1758573666502,133.8,219.86,219.83,0.7]
[1758573666700,133.8,219.86,219.84,0.7]
[1758573666892,133.8,219.86,219.81,18.76989068]
[1758573666893,133.8,219.86,219.85,0.7]
[1758573668030,133.8,219.86,219.85,5.24855583]
[1758573668198,133.8,219.86,219.85,4.54855583]
[1758573668894,133.8,219.86,219.85,5.24855583]
[1758573670733,133.8,219.86,219.85,8.09560407]
[1758573671111,133.8,219.86,219.85,5.24855583]
[1758573672038,0.1,219.86,219.85,5.24855583]
[1758573673131,0.1,219.86,219.8,14.92080453]
[1758573673338,0.1,219.86,219.81,4.54921539]
[1758573673529,0.1,219.86,219.74,3.54704824]
[1758573673530,38.55704824,219.85,219.74,3.54704824]
[1758573673731,0.13,219.84,219.75,4.55062571]
[1758573673929,35.71,219.83,219.75,4.55062571]
[1758573674740,35.21,219.83,219.75,4.55062571]
[1758573675039,4.54917659,219.82,219.75,4.55062571]
[1758573675342,0.13,219.82,219.75,4.55062571]
[1758573676151,0.13,219.82,219.75,5.22062571]
[1758573677442,0.13,219.81,219.73,4.55096009]
[1758573677655,35.71,219.8,219.73,4.55096009]
[1758573677832,2.97704824,219.79,219.69,0.67]
[1758573678028,0.13,219.78,219.69,0.67]
[1758573678237,35.71,219.77,219.69,0.67]
[1758573678829,4.55041863,219.76,219.69,5.2218266]
[1758573679157,4.68041863,219.76,219.69,5.2218266]
[1758573679524,4.68041863,219.76,219.67,4.55210236]
[1758573679718,4.68041863,219.76,219.67,5.22210236]
[1758573679942,0.13,219.75,219.67,5.22210236]
[1758573680152,4.55014368,219.78,219.68,3.51704824]
[1758573680335,35.58,219.77,219.7,2.84704824]
[1758573680537,35.58,219.77,219.71,0.67]
[1758573680737,0.13,219.79,219.71,0.67]
[1758573680930,40.26001175,219.78,219.69,4.55186854]
[1758573681249,40.26001175,219.78,219.69,5.22186854]
[1758573681445,2.84704824,219.76,219.67,4.55209003]
[1758573681655,2.84704824,219.74,219.67,4.55209003]
[1758573681823,0.13,219.75,219.67,4.55209003]
[1758573682020,0.13,219.75,219.67,5.22209003]
[1758573682652,35.58,219.77,219.65,5.22258704]
[1758573682653,7.52788104,219.74,219.65,5.22258704]
[1758573682843,2.84704824,219.72,219.65,5.22258704]
[1758573683055,0.13,219.71,219.65,5.22258704]
[1758573683225,0.13,219.71,219.63,4.55297265]
[1758573683426,0.13,219.71,219.63,5.22297265]
[1758573683626,35.71,219.71,219.63,5.22297265]
[1758573683868,35.58,219.71,219.63,0.67]
[1758573684164,0.13,219.7,219.63,5.22308562]
[1758573684463,35.58,219.71,219.64,0.67]
[1758573684636,35.58,219.71,219.65,4.55269747]
[1758573684846,35.58,219.71,219.65,5.22269747]
[1758573685432,38.42704824,219.72,219.65,5.22269747]
[1758573685840,2.84704824,219.74,219.66,0.67]
[1758573686038,13.59559401,219.82,219.66,0.67]
[1758573686039,3.1823258,219.79,219.66,0.67]
[1758573686237,22.42,219.79,219.68,2.84704824]
[1758573686439,38.42704824,219.8,219.69,0.67]
[1758573686753,35.58,219.8,219.69,0.67]
[1758573686933,35.58,219.8,219.7,26.0]
[1758573687130,35.58,219.8,219.71,0.67]
[1758573687558,2.97704824,219.81,219.71,0.67]
[1758573687766,38.42704824,219.81,219.72,15.92936464]
[1758573687938,38.42704824,219.81,219.73,0.7]
[1758573688342,2.84704824,219.81,219.73,0.7]
[1758573688540,42.97646801,219.81,219.73,0.7]
[1758573688741,43.10646801,219.81,219.73,0.7]
[1758573689259,0.13,219.81,219.73,0.7]
[1758573689559,35.58,219.81,219.73,0.7]
[1758573690836,2.97704824,219.8,219.69,0.7]
[1758573691038,0.13,219.79,219.69,16.63150488]
[1758573691253,2.97704824,219.78,219.69,16.63150488]
[1758573691458,0.13,219.78,219.7,0.7]
[1758573692551,0.13,219.78,219.71,4.55145418]
[1758573692751,133.7,219.77,219.71,4.55145418]
[1758573693437,133.7,219.77,219.71,5.25145418]
[1758573693634,133.7,219.77,219.72,0.7]
[1758573695438,133.7,219.77,219.73,0.7]
[1758573696246,0.13,219.76,219.69,4.55186854]
[1758573696942,38.55704824,219.75,219.69,4.55186854]
[1758573697250,38.55704824,219.75,219.67,4.55209332]
[1758573697444,2.84704824,219.73,219.67,4.55209332]
[1758573698339,7.39826534,219.73,219.67,4.55209332]
[1758573698536,0.13,219.72,219.65,4.5525722]
[1758573698754,2.97704824,219.71,219.65,4.5525722]
[1758573699038,2.97704824,219.71,219.62,39.79041855]
[1758573699039,2.84704824,219.69,219.62,4.55311422]
[1758573700045,40.26179435,219.7,219.63,5.25301412]
[1758573701348,40.26179435,219.7,219.62,0.7]
[1758573702459,4.55179435,219.7,219.62,0.7]
[1758573702762,4.6812547,219.72,219.62,0.7]
[1758573702945,35.58,219.71,219.62,0.7]
[1758573703463,4.5512547,219.72,219.62,0.7]
[1758573703464,4.5512547,219.72,219.63,15.93589218]
[1758573703758,35.58,219.72,219.64,0.7]
[1758573703957,35.58,219.72,219.62,18.18453116]
[1758573703958,2.97704824,219.71,219.62,18.18453116]
[1758573704166,2.84704824,219.69,219.62,18.18453116]
[1758573704547,2.84704824,219.69,219.62,18.88453116]
[1758573704756,133.7,219.68,219.62,18.88453116]
[1758573705372,133.7,219.68,219.63,0.7]
[1758573705863,2.84704824,219.84,219.63,0.7]
[1758573705864,0.13,219.76,219.64,16.44264225]
[1758573706063,35.58,219.76,219.65,0.7]
[1758573706569,2.97704824,219.78,219.66,13.59559401]
[1758573706744,35.58,219.77,219.67,0.7]
[1758573707469,38.55704824,219.78,219.68,15.9322651]
[1758573707671,38.55704824,219.78,219.69,0.7]
[1758573708071,35.71,219.78,219.69,0.7]
[1758573708456,35.71,219.78,219.7,4.55166135]
[1758573708658,0.13,219.77,219.7,4.55166135]
[1758573710071,40.13009952,219.78,219.7,4.55166135]
[1758573710372,0.13,219.76,219.7,4.55166135]
[1758573710671,2.84704824,219.77,219.7,4.55166135]
[1758573710977,43.10714776,219.78,219.71,0.7]
[1758573711187,2.97704824,219.78,219.71,0.7]
[1758573711468,35.58,219.78,219.71,0.7]
[1758573712075,133.7,219.82,219.71,0.7]
[1758573712274,35.58,219.81,219.72,15.92936464]
[1758573712577,35.58,219.81,219.73,0.7]
[1758573712884,133.83,219.82,219.73,0.7]
[1758573713179,35.58,219.81,219.73,0.7]
[1758573713779,133.83,219.82,219.73,0.7]
[1758573713975,35.58,219.81,219.73,0.7]
[1758573714180,35.58,219.81,219.74,4.5508328]
[1758573716380,38.53704824,219.81,219.74,4.5508328]
[1758573716566,0.13,219.8,219.74,4.5508328]
[1758573717666,35.69,219.8,219.74,4.5508328]
[1758573718386,133.7,219.82,219.75,0.67]
[1758573718582,35.56,219.81,219.75,0.67]
[1758573719381,169.26,219.82,219.75,0.67]
[1758573719682,169.26,219.82,219.76,4.55041863]
[1758573721363,171.08307253,219.82,219.76,4.55041863]
[1758573722579,133.7,219.81,219.76,4.55041863]
[1758573723880,133.83,219.81,219.76,4.55041863]
[1758573724382,133.83,219.81,219.76,5.22041863]
[1758573724568,133.83,219.81,219.76,4.55041863]
[1758573725383,1.82307253,219.78,219.7,0.67]
[1758573725603,1.82307253,219.74,219.67,0.67]
[1758573725784,1.82307253,219.72,219.66,4.55249021]
[1758573726080,1.82307253,219.72,219.66,5.22249021]
[1758573726377,37.51307253,219.73,219.66,5.22249021]
[1758573729981,1.95307253,219.73,219.66,5.22249021]
[1758573730188,37.51307253,219.73,219.66,5.22249021]
[1758573730372,37.51307253,219.73,219.65,11.38173237]
[1758573730573,37.51307253,219.73,219.66,0.67]
[1758573731284,1.95307253,219.73,219.66,0.67]
[1758573731487,35.69,219.73,219.67,4.55228296]
[1758573731677,37.51307253,219.73,219.67,4.55228296]
[1758573732392,1.82307253,219.75,219.67,15.93299038]
[1758573732594,169.26,219.76,219.68,0.67]
[1758573732961,133.7,219.76,219.68,0.67]
[1758573733588,133.7,219.76,219.69,15.93153989]
[1758573733776,133.7,219.76,219.7,0.67]
[1758573734678,133.7,219.76,219.71,4.55145418]
[1758573734881,133.7,219.76,219.71,5.22145418]
[1758573735373,133.7,219.76,219.67,26.0]
[1758573735575,133.7,219.76,219.66,0.69]
[1758573735576,1.82307253,219.73,219.66,0.69]
[1758573735773,37.38307253,219.73,219.66,0.69]